fUSD/lending_fUSD_20240115
["ID","MTS","AMOUNT","RATE_DAILY","PERIOD"]
[311694606,1705336288880,-500.0,0.00033424,4]
[311694607,1705336288891,-376.49358476,0.00033424,4]
[311694608,1705336288900,-500.0,0.00033424,4]
[311694609,1705336288909,-500.0,0.00033424,4]
[311694610,1705336288918,-500.0,0.00033424,4]
[311694611,1705336288927,-1200.54,0.00033424,4]
[311694612,1705336288936,-1331.94,0.00033424,4]
[311694613,1705336288946,-500.0,0.00033424,4]
[311694614,1705336288958,-500.0,0.00033424,4]
[311694615,1705336288968,-500.0,0.00033424,4]
[311694616,1705336288977,-843.16,0.00033424,4]
[311694617,1705336288986,-701.07,0.00033424,4]
[311694618,1705336288996,-988.39,0.00033424,4]
[311694619,1705336289005,-500.0,0.00033424,4]
[311694620,1705336289015,-159.62396927,0.00033424,4]
[311694621,1705336289024,-500.0,0.00033424,4]
[311694622,1705336289033,-500.0,0.00033424,4]
[311694623,1705336289043,-500.0,0.00033424,4]
[311694624,1705336289055,-530.74,0.00033424,4]
[311694625,1705336289065,-1295.17,0.00033424,4]
[311694626,1705336289074,-500.0,0.00033424,4]
[311694627,1705336289083,-500.0,0.00033424,4]
[311694628,1705336289092,-1211.16,0.00033424,4]
[311694629,1705336289101,-500.0,0.00033424,4]
[311694630,1705336289110,-500.0,0.00033424,4]
[311694631,1705336289119,-500.0,0.00033424,4]
[311694632,1705336289127,-500.0,0.00033424,4]
[311694633,1705336289136,-500.0,0.00033424,4]
[311694634,1705336289145,-500.0,0.00033424,4]
[311694635,1705336289155,-500.0,0.00033424,4]
[311694636,1705336289164,-733.36,0.00033424,4]
[311694637,1705336289173,-500.0,0.00033424,4]
[311694638,1705336289182,-829.03,0.00033424,4]
[311694639,1705336289191,-500.0,0.00033424,4]
[311694640,1705336289200,-1017.61,0.00033424,4]
[311694641,1705336289208,-1134.83,0.00033424,4]
[311694642,1705336289217,-329.66532445,0.00033424,4]
[311694643,1705336289227,-500.0,0.00033424,4]
[311694644,1705336289236,-500.0,0.00033424,4]
[311694645,1705336289245,-500.0,0.00033424,4]
[311694646,1705336289254,-515.48353916,0.00033424,4]
[311694647,1705336289263,-500.0,0.00033424,4]
[311694648,1705336289279,-184.42837054,0.00033424,4]
[311694649,1705336289295,-500.0,0.00033424,4]
[311694650,1705336289310,-500.0,0.00033424,4]
[311694651,1705336289322,-500.0,0.00033424,4]
[311694652,1705336289336,-712.41,0.00033424,4]
[311694653,1705336289351,-500.0,0.00033424,4]
[311694654,1705336289365,-1244.04,0.00033424,4]
[311694655,1705336289380,-507.93326739,0.00033424,4]
[311694656,1705336289391,-947.38,0.00033424,4]
[311694657,1705336289406,-500.0,0.00033424,4]
[311694658,1705336289419,-500.0,0.00033424,4]
[311694659,1705336289432,-784.85,0.00033424,4]
[311694660,1705336289448,-500.0,0.00033424,4]
[311694661,1705336289459,-757.49,0.00033424,4]
[311694662,1705336289473,-500.0,0.00033424,4]
[311694663,1705336289488,-1544.92,0.00033424,4]
[311694664,1705336289502,-500.0,0.00033424,4]
[311694665,1705336289515,-1146.34,0.00033424,4]
[311694666,1705336289529,-673.14,0.00033424,4]
[311694667,1705336289543,-500.0,0.00033424,4]
[311694668,1705336289558,-1346.84,0.00033424,4]
[311694669,1705336289573,-500.0,0.00033424,4]
[311694670,1705336289588,-1158.4,0.00033424,4]
[311694671,1705336289599,-837.09,0.00033424,4]
[311694672,1705336289610,-716.69,0.00033424,4]
[311694673,1705336289623,-876.57,0.00033424,4]
[311694674,1705336289636,-922.44,0.00033424,4]
[311694675,1705336289652,-500.0,0.00033424,4]
[311694676,1705336289665,-500.0,0.00033424,4]
[311694677,1705336289676,-983.32,0.00033424,4]
[311694678,1705336289690,-500.0,0.00033424,4]
[311694679,1705336289703,-500.0,0.00033424,4]
[311694680,1705336289719,-423.87920111,0.00033424,4]
[311694681,1705336289732,-1861.7,0.00033424,4]
[311694682,1705336289746,-500.0,0.00033424,4]
[311694683,1705336289759,-500.0,0.00033424,4]
[311694684,1705336289772,-514.76,0.00033424,4]
[311694685,1705336289785,-500.0,0.00033424,4]
[311694686,1705336289798,-500.0,0.00033424,4]
[311694687,1705336289810,-500.0,0.00033424,4]
[311694688,1705336289823,-500.0,0.00033424,4]
[311694689,1705336289835,-500.0,0.00033424,4]
[311694690,1705336289847,-500.0,0.00033424,4]
[311694691,1705336289859,-780.7,0.00033424,4]
[311694692,1705336289870,-500.0,0.00033424,4]
[311694693,1705336289882,-500.0,0.00033424,4]
[311694694,1705336289894,-500.0,0.00033424,4]
[311694695,1705336289906,-500.0,0.00033424,4]
[311694696,1705336289919,-500.0,0.00033424,4]
[311694697,1705336289931,-1611.92,0.00033424,4]
[311694698,1705336289943,-500.0,0.00033424,4]
[311694699,1705336289955,-500.0,0.00033424,4]
[311694700,1705336289968,-500.0,0.00033424,4]
[311694701,1705336289980,-774.09,0.00033424,4]
[311694702,1705336289992,-500.0,0.00033424,4]
[311694703,1705336290005,-1232.6,0.00033424,4]
[311694704,1705336290016,-500.0,0.00033424,4]
[311694705,1705336290028,-555.74,0.00033424,4]
[311694706,1705336290041,-500.0,0.00033424,4]
[311694707,1705336290053,-210.79366522,0.00033424,4]
[311694708,1705336290065,-500.0,0.00033424,4]
[311694709,1705336290077,-500.0,0.00033424,4]
[311694710,1705336290089,-1365.03,0.00033424,4]
[311694711,1705336290102,-547.9645925,0.00033424,4]
[311694712,1705336290114,-617.89,0.00033424,4]
[311694713,1705336290126,-713.75,0.00033424,2]
[311694714,1705336290138,-1000.0,0.00033424,4]
[311694715,1705336290150,-566.42448411,0.00033424,4]
[311694716,1705336290162,-500.0,0.00033424,4]
[311694717,1705336290174,-1118.08,0.00033424,4]
[311694718,1705336290186,-500.0,0.00033424,4]
[311694719,1705336290198,-796.24,0.00033424,4]
[311694720,1705336290210,-500.0,0.00033424,4]
[311694721,1705336290222,-831.79,0.00033424,2]
[311694722,1705336290235,-935.58,0.00033424,4]
[311694723,1705336290247,-500.0,0.00033424,4]
[311694724,1705336290259,-1099.38,0.00033424,4]
[311694725,1705336290272,-740.57,0.00033424,4]
[311694726,1705336290284,-503.27556866,0.00033424,4]
[311694727,1705336290297,-500.0,0.00033424,4]
[311694728,1705336290310,-612.56,0.00033424,4]
[311694729,1705336290322,-500.0,0.00033424,4]
[311694730,1705336290334,-500.0,0.00033424,4]
[311694731,1705336290347,-500.0,0.00033424,4]
[311694732,1705336290359,-500.0,0.00033424,4]
[311694733,1705336290371,-500.0,0.00033424,4]
[311694734,1705336290385,-752.06,0.00033424,4]
[311694735,1705336290398,-250.76,0.00033424,4]
[311694736,1705336290410,-500.0,0.00033424,4]
[311694737,1705336290423,-500.0,0.00033424,4]
[311694738,1705336290435,-958.02,0.00033424,4]
[311694739,1705336290447,-500.0,0.00033424,4]
[311694740,1705336290459,-500.0,0.00033424,4]
[311694741,1705336290470,-800.97,0.00033424,4]
[311694742,1705336290482,-500.0,0.00033424,4]
[311694743,1705336290494,-611.79,0.00033424,4]
[311694744,1705336290506,-500.0,0.00033424,4]
[311694745,1705336290518,-500.0,0.00033424,4]
[311694746,1705336290529,-790.54,0.00033424,4]
[311694747,1705336290541,-500.0,0.00033424,4]
[311694748,1705336290552,-500.0,0.00033424,4]
[311694749,1705336290564,-1647.76,0.00033424,4]
[311694750,1705336290576,-1000.0,0.00033424,7]
[311694751,1705336290587,-1120.25,0.00033424,4]
[311694752,1705336290599,-500.0,0.00033424,4]
[311694753,1705336290611,-1258.83,0.00033424,4]
[311694754,1705336290623,-500.0,0.00033424,4]
[311694755,1705336290634,-505.8286944,0.00033424,4]
[311694756,1705336290646,-1366.16,0.00033424,4]
[311694757,1705336290656,-500.0,0.00033424,4]
[311694758,1705336290668,-698.17,0.00033424,4]
[311694759,1705336290680,-500.0,0.00033424,4]
[311694760,1705336290691,-686.63,0.00033424,4]
[311694761,1705336290702,-635.78,0.00033424,4]
[311694762,1705336290715,-500.0,0.00033424,4]
[311694763,1705336290727,-500.0,0.00033424,4]
[311694764,1705336290739,-500.0,0.00033424,4]
[311694765,1705336290751,-500.0,0.00033424,4]
[311694766,1705336290762,-1682.47,0.00033424,4]
[311694767,1705336290774,-1031.42,0.00033424,4]
[311694768,1705336290785,-596.29,0.00033424,4]
[311694769,1705336290797,-500.0,0.00033424,4]
[311694770,1705336290809,-500.0,0.00033424,4]
[311694771,1705336290821,-500.0,0.00033424,4]
[311694772,1705336290833,-500.0,0.00033424,4]
[311694773,1705336290845,-808.49,0.00033424,4]
[311694774,1705336290856,-638.76,0.00033424,4]
[311694775,1705336290867,-500.0,0.00033424,4]
[311694776,1705336290879,-500.0,0.00033424,4]
[311694777,1705336290890,-500.0,0.00033424,4]
[311694778,1705336290902,-1056.84,0.00033424,4]
[311694779,1705336290914,-766.55,0.00033424,4]
[311694780,1705336290925,-331.21661074,0.00033424,4]
[311694781,1705336290937,-1245.64,0.00033424,4]
[311694782,1705336290949,-1685.24,0.00033424,4]
[311694783,1705336290961,-500.0,0.00033424,4]
[311694784,1705336290973,-772.07,0.00033424,4]
[311694785,1705336290984,-1018.85,0.00033424,4]
[311694786,1705336290995,-500.0,0.00033424,4]
[311694787,1705336291007,-500.0,0.00033424,4]
[311694788,1705336291018,-645.55,0.00033424,4]
[311694789,1705336291030,-714.06,0.00033424,4]
[311694790,1705336291042,-747.22,0.00033424,4]
[311694791,1705336291053,-500.0,0.00033424,4]
[311694792,1705336291064,-500.0,0.00033424,4]
[311694793,1705336291075,-483.52675497,0.00033424,4]
[311694794,1705336291087,-500.0,0.00033424,4]
[311694795,1705336291099,-847.13,0.00033424,4]
[311694796,1705336291110,-500.0,0.00033424,4]
[311694797,1705336291121,-500.0,0.00033424,4]
[311694798,1705336291133,-500.0,0.00033424,4]
[311694799,1705336291145,-500.0,0.00033424,4]
[311694800,1705336291156,-988.3,0.00033424,4]
[311694801,1705336291174,-1421.12,0.00033424,4]
[311694802,1705336291186,-500.0,0.00033424,4]
[311694803,1705336291197,-500.0,0.00033424,4]
[311694804,1705336291208,-500.0,0.00033424,4]
[311694805,1705336291220,-500.0,0.00033424,4]
[311694806,1705336291232,-636.1598538,0.00033424,4]
[311694807,1705336291243,-2008.87,0.00033424,4]
[311694808,1705336291256,-671.6,0.00033424,4]
[311694809,1705336291268,-500.0,0.00033424,4]
[311694810,1705336291279,-300.0,0.00033424,4]
[311694811,1705336291291,-500.0,0.00033424,4]
[311694812,1705336291303,-500.0,0.00033424,4]
[311694813,1705336291315,-847.4,0.00033424,4]
[311694814,1705336291326,-675.95,0.00033424,4]
[311694815,1705336291337,-500.0,0.00033424,4]
[311694816,1705336291349,-500.0,0.00033424,4]
[311694817,1705336291361,-561.45,0.00033424,4]
[311694818,1705336291372,-500.0,0.00033424,4]
[311694819,1705336291383,-274.07905164,0.00033424,4]
[311694820,1705336291395,-500.0,0.00033424,4]
[311694821,1705336291406,-500.0,0.00033424,4]
[311694822,1705336291419,-500.0,0.00033424,4]
[311694823,1705336291431,-521.33665729,0.00033424,4]
[311694824,1705336291443,-686.33,0.00033424,4]
[311694825,1705336291455,-500.0,0.00033424,4]
[311694826,1705336291467,-500.0,0.00033424,4]
[311694827,1705336291478,-500.0,0.00033424,4]
[311694828,1705336291490,-775.38,0.00033424,4]
[311694829,1705336291501,-500.0,0.00033424,4]
[311694830,1705336291513,-705.01,0.00033424,4]
[311694831,1705336291525,-967.84,0.00033424,4]
[311694832,1705336291537,-500.0,0.00033424,4]
[311694833,1705336291549,-500.0,0.00033424,4]
[311694834,1705336291560,-500.0,0.00033424,4]
[311694835,1705336291573,-500.0,0.00033424,4]
[311694836,1705336291584,-628.32,0.00033424,4]
[311694837,1705336291596,-568.48,0.00033424,4]
[311694838,1705336291608,-500.0,0.00033424,4]
[311694839,1705336291620,-1232.73,0.00033424,4]
[311694840,1705336291632,-1110.73,0.00033424,4]
[311694841,1705336291644,-857.28,0.00033424,4]
[311694842,1705336291655,-500.0,0.00033424,4]
[311694843,1705336291666,-520.59380299,0.00033424,4]
[311694844,1705336291679,-500.0,0.00033424,4]
[311694845,1705336291690,-1713.63,0.00033424,4]
[311694846,1705336291703,-500.0,0.00033424,4]
[311694847,1705336291718,-690.4,0.00033424,4]
[311694848,1705336291731,-500.0,0.00033424,4]
[311694849,1705336291743,-500.0,0.00033424,4]
[311694850,1705336291755,-611.53,0.00033424,4]
[311694851,1705336291767,-738.65,0.00033424,4]
[311694852,1705336291779,-500.0,0.00033424,4]
[311694853,1705336291791,-853.43,0.00033424,4]
[311694854,1705336291803,-500.0,0.00033424,4]
[311694855,1705336291815,-500.0,0.00033424,4]
[311694856,1705336291827,-1659.61,0.00033424,4]
[311694857,1705336291839,-1353.34,0.00033424,4]
[311694858,1705336291850,-500.0,0.00033424,4]
[311694859,1705336291861,-721.81,0.00033424,4]
[311694860,1705336291872,-926.69,0.00033424,4]
[311694861,1705336291884,-500.0,0.00033424,4]
[311694862,1705336291895,-1156.41,0.00033424,4]
[311694863,1705336291907,-500.0,0.00033424,4]
[311694864,1705336291918,-500.0,0.00033424,4]
[311694865,1705336291930,-1034.8,0.00033424,4]
[311694866,1705336291942,-500.0,0.00033424,4]
[311694867,1705336291954,-1992.05,0.00033424,4]
[311694868,1705336291967,-2418.03,0.00033424,4]
[311694869,1705336291979,-500.0,0.00033424,4]
[311694870,1705336291991,-975.07,0.00033424,4]
[311694871,1705336292003,-500.0,0.00033424,4]
[311694872,1705336292014,-1652.74,0.00033424,4]
[311694873,1705336292027,-511.92050868,0.00033424,4]
[311694874,1705336292038,-1082.51,0.00033424,4]
[311694875,1705336292050,-500.0,0.00033424,4]
[311694876,1705336292063,-500.0,0.00033424,4]
[311694877,1705336292076,-1450.58,0.00033424,4]
[311694878,1705336292087,-500.0,0.00033424,4]
[311694879,1705336292100,-500.0,0.00033424,4]
[311694880,1705336292113,-881.59,0.00033424,4]
[311694881,1705336292124,-512.69475596,0.00033424,4]
[311694882,1705336292137,-500.0,0.00033424,4]
[311694883,1705336292149,-500.0,0.00033424,4]
[311694884,1705336292162,-500.0,0.00033424,4]
[311694885,1705336292174,-500.0,0.00033424,4]
[311694886,1705336292186,-500.0,0.00033424,4]
[311694887,1705336292198,-500.0,0.00033424,4]
[311694888,1705336292209,-4246.26,0.00033424,4]
[311694889,1705336292221,-910.34,0.00033424,4]
[311694890,1705336292232,-500.0,0.00033424,4]
[311694891,1705336292244,-500.0,0.00033424,4]
[311694892,1705336292255,-1130.68,0.00033424,4]
[311694893,1705336292267,-500.0,0.00033424,4]
[311694894,1705336292280,-597.24,0.00033424,4]
[311694895,1705336292292,-500.0,0.00033424,4]
[311694896,1705336292305,-510.05407549,0.00033424,4]
[311694897,1705336292317,-3667.22,0.00033424,4]
[311694898,1705336292329,-500.0,0.00033424,4]
[311694899,1705336292340,-500.0,0.00033424,4]
[311694900,1705336292353,-603.11,0.00033424,4]
[311694901,1705336292364,-730.06,0.00033424,4]
[311694902,1705336292375,-854.2,0.00033424,5]
[311694903,1705336292387,-5637.45,0.00033424,4]
[311694904,1705336292398,-4058.96,0.00033424,4]
[311694905,1705336292410,-500.0,0.00033424,4]
[311694906,1705336292421,-1323.04,0.00033424,4]
[311694907,1705336292433,-696.02,0.00033424,4]
[311694908,1705336292445,-512.46,0.00033424,4]
[311694909,1705336292456,-540.95,0.00033424,4]
[311694910,1705336292467,-500.0,0.00033424,4]
[311694911,1705336292479,-781.4,0.00033424,4]
[311694912,1705336292491,-1029.98,0.00033424,4]
[311694913,1705336292502,-1067.63,0.00033424,4]
[311694914,1705336292514,-713.14,0.00033424,4]
[311694915,1705336292526,-17948.03,0.00033424,4]
[311694916,1705336292537,-7311.79,0.00033424,4]
[311694917,1705336292553,-717.05,0.00033424,5]
[311694918,1705336292564,-500.0,0.00033424,4]
[311694919,1705336292577,-500.0,0.00033424,4]
[311694920,1705336292588,-933.35,0.00033424,4]
[311694921,1705336293129,-728.61,0.00033424,4]
[311694922,1705336293139,-500.0,0.00033424,4]
[311694923,1705336293149,-382.87544168,0.00033424,4]
[311694924,1705336293159,-569.18,0.00033424,4]
[311694925,1705336293168,-932.3,0.00033424,4]
[311694926,1705336293178,-500.0,0.00033424,4]
[311694927,1705336293188,-500.0,0.00033424,4]
[311694928,1705336293198,-528.45993714,0.00033424,4]
[311694929,1705336293208,-4638.06,0.00033424,4]
[311694930,1705336293218,-1077.25,0.00033424,4]
[311694931,1705336293227,-500.0,0.00033424,4]
[311694932,1705336293237,-5660.58,0.00033424,4]
[311694933,1705336293247,-691.91,0.00033424,4]
[311694934,1705336293256,-1827.12,0.00033424,4]
[311694935,1705336293266,-500.0,0.00033424,4]
[311694936,1705336293276,-500.0,0.00033424,4]
[311694937,1705336293286,-1452.34,0.00033424,4]
[311694938,1705336293296,-852.55,0.00033424,4]
[311694939,1705336293305,-909.43,0.00033424,4]
[311694940,1705336293315,-500.0,0.00033424,4]
[311694941,1705336293325,-500.0,0.00033424,4]
[311694942,1705336293334,-556.34831086,0.00033424,4]
[311694943,1705336293344,-500.0,0.00033424,4]
[311694944,1705336293354,-4608.99,0.00033424,4]
[311694945,1705336293363,-500.0,0.00033424,4]
[311694946,1705336293373,-612.15,0.00033424,4]
[311694947,1705336293383,-500.0,0.00033424,4]
[311694948,1705336293392,-500.0,0.00033424,4]
[311694949,1705336293403,-1036.57,0.00033424,4]
[311694950,1705336293413,-500.0,0.00033424,4]
[311694951,1705336293423,-1075.39,0.00033424,4]
[311694952,1705336293434,-602.67548196,0.00033424,4]
[311694953,1705336293443,-1372.56,0.00033424,4]
[311694954,1705336293453,-615.38,0.00033424,4]
[311694955,1705336293463,-12456.18,0.00033424,4]
[311694956,1705336293474,-558.41,0.00033424,4]
[311694957,1705336293484,-500.0,0.00033424,4]
[311694958,1705336293494,-500.0,0.00033424,4]
[311694959,1705336293514,-1818.75,0.00033424,4]
[311694960,1705336293527,-500.0,0.00033424,4]
[311694961,1705336293538,-1021.56,0.00033424,4]
[311694962,1705336293551,-500.0,0.00033424,4]
[311694963,1705336293562,-12085.1,0.00033424,4]
[311694964,1705336293572,-670.13,0.00033424,4]
[311694965,1705336293584,-1009.52,0.00033424,4]
[311694966,1705336293594,-889.11,0.00033424,4]
[311694967,1705336293605,-982.41,0.00033424,4]
[311694968,1705336293616,-500.0,0.00033424,4]
[311694969,1705336293626,-500.0,0.00033424,10]
[311694970,1705336293636,-1077.58,0.00033424,4]
[311694971,1705336293645,-500.0,0.00033424,4]
[311694972,1705336293655,-1008.14,0.00033424,4]
[311694973,1705336293664,-7883.37,0.00033424,4]
[311694974,1705336293675,-500.0,0.00033424,4]
[311694975,1705336293685,-500.0,0.00033424,4]
[311694976,1705336293695,-500.0,0.00033424,4]
[311694977,1705336293706,-2687.69,0.00033424,4]
[311694978,1705336293718,-725.21,0.00033424,4]
[311694979,1705336293727,-500.0,0.00033424,4]
[311694980,1705336293737,-4819.7,0.00033424,4]
[311694981,1705336293747,-824.72,0.00033424,4]
[311694982,1705336293757,-500.0,0.00033424,4]
[311694983,1705336293767,-19040.78,0.00033424,4]
[311694984,1705336293776,-671.18,0.00033424,4]
[311694985,1705336293786,-553.5,0.00033424,4]
[311694986,1705336293797,-500.0,0.00033424,4]
[311694987,1705336293807,-2750.71,0.00033424,4]
[311694988,1705336293817,-835.92,0.00033424,4]
[311694989,1705336293827,-875.33,0.00033424,4]
[311694990,1705336293836,-642.16,0.00033424,4]
[311694991,1705336293846,-766.05,0.00033424,4]
[311694992,1705336293856,-500.0,0.00033424,4]
[311694993,1705336293867,-1989.66,0.00033424,4]
[311694994,1705336293876,-1822.17,0.00033424,4]
[311694995,1705336293886,-981.54,0.00033424,4]
[311694996,1705336293897,-2786.42,0.00033424,4]
[311694997,1705336293907,-3981.89,0.00033424,4]
[311694998,1705336293916,-500.0,0.00033424,4]
[311694999,1705336293926,-500.0,0.00033424,4]
[311695000,1705336293936,-603.04,0.00033424,4]
[311695001,1705336293946,-535.02,0.00033424,4]
[311695002,1705336293955,-500.0,0.00033424,4]
[311695003,1705336293965,-500.0,0.00033424,4]
[311695004,1705336293975,-635.5,0.00033424,4]
[311695005,1705336293985,-500.0,0.00033424,4]
[311695006,1705336293995,-1304.28,0.00033424,4]
[311695007,1705336294005,-2167.3,0.00033424,4]
[311695008,1705336294015,-500.0,0.00033424,4]
[311695009,1705336294025,-1130.33,0.00033424,4]
[311695010,1705336294035,-2210.26,0.00033424,4]
[311695011,1705336294046,-1225.2,0.00033424,4]
[311695012,1705336294056,-1000.0,0.00033424,2]
[311695013,1705336294065,-1090.57,0.00033424,4]
[311695014,1705336294075,-1119.99,0.00033424,4]
[311695015,1705336294086,-500.0,0.00033424,4]
[311695016,1705336294095,-4487.95,0.00033424,4]
[311695017,1705336294105,-1883.96,0.00033424,4]
[311695018,1705336294116,-4085.7,0.00033424,4]
[311695019,1705336294126,-500.0,0.00033424,4]
[311695020,1705336294136,-500.0,0.00033424,4]
[311695021,1705336294147,-514.47,0.00033424,4]
[311695022,1705336294157,-500.0,0.00033424,4]
[311695023,1705336294167,-500.0,0.00033424,4]
[311695024,1705336294177,-1165.22,0.00033424,4]
[311695025,1705336294188,-1475.63,0.00033424,4]
[311695026,1705336294198,-10376.15,0.00033424,4]
[311695027,1705336294208,-500.0,0.00033424,4]
[311695028,1705336294218,-873.69,0.00033424,4]
[311695029,1705336294228,-500.0,0.00033424,4]
[311695030,1705336294238,-500.0,0.00033424,4]
[311695031,1705336294248,-3401.36,0.00033424,4]
[311695032,1705336294259,-9747.26,0.00033424,4]
[311695033,1705336294269,-602.0,0.00033424,4]
[311695034,1705336294279,-8933.37,0.00033424,4]
[311695035,1705336294289,-500.0,0.00033424,4]
[311695036,1705336294301,-500.0,0.00033424,4]
[311695037,1705336294310,-500.0,0.00033424,4]
[311695038,1705336294320,-500.0,0.00033424,4]
[311695039,1705336294330,-1009.57,0.00033424,4]
[311695040,1705336294341,-2118.19,0.00033424,4]
[311695041,1705336294351,-620.19,0.00033424,4]
[311695042,1705336294361,-500.0,0.00033424,4]
[311695043,1705336294371,-507.38691825,0.00033424,4]
[311695044,1705336294381,-506.80410126,0.00033424,4]
[311695045,1705336294391,-1705.04,0.00033424,4]
[311695046,1705336294400,-1175.44,0.00033424,4]
[311695047,1705336294411,-500.0,0.00033424,4]
[311695048,1705336294421,-500.0,0.00033424,4]
[311695049,1705336294431,-865.74,0.00033424,4]
[311695050,1705336294442,-527.47,0.00033424,4]
[311695051,1705336294453,-500.0,0.00033424,4]
[311695052,1705336294462,-1016.2,0.00033424,4]
[311695053,1705336294472,-815.02,0.00033424,4]
[311695054,1705336294482,-500.0,0.00033424,4]
[311695055,1705336294493,-500.0,0.00033424,4]
[311695056,1705336294503,-765.11,0.00033424,4]
[311695057,1705336294513,-500.0,0.00033424,4]
[311695058,1705336294523,-2635.82,0.00033424,4]
[311695059,1705336294534,-38799.65,0.00033424,4]
[311695060,1705336294545,-500.0,0.00033424,4]
[311695061,1705336294554,-3358.06,0.00033424,4]
[311695062,1705336294565,-622.73,0.00033424,4]
[311695063,1705336294576,-500.0,0.00033424,4]
[311695064,1705336294587,-2373.82,0.00033424,4]
[311695065,1705336294597,-500.0,0.00033424,4]
[311695066,1705336294607,-500.0,0.00033424,4]
[311695067,1705336294618,-500.0,0.00033424,4]
[311695068,1705336294627,-1677.77,0.00033424,4]
[311695069,1705336294638,-957.17,0.00033424,4]
[311695070,1705336294648,-1335.42,0.00033424,4]
[311695071,1705336294658,-611.79094686,0.00033424,4]
[311695072,1705336294668,-2628.0,0.00033424,4]
[311695073,1705336294678,-500.0,0.00033424,4]
[311695074,1705336294688,-500.0,0.00033424,4]
[311695075,1705336294698,-1041.0,0.00033424,4]
[311695076,1705336294709,-558.8,0.00033424,4]
[311695077,1705336294723,-500.0,0.00033424,4]
[311695078,1705336294732,-912.24,0.00033424,4]
[311695079,1705336294743,-416.24,0.00033424,4]
[311695080,1705336294753,-500.0,0.00033424,4]
[311695081,1705336294763,-742.46,0.00033424,4]
[311695082,1705336294774,-1332.8,0.00033424,4]
[311695083,1705336294783,-1330.01,0.00033424,4]
[311695084,1705336294794,-578.10073578,0.00033424,4]
[311695085,1705336294805,-1774.84,0.00033424,4]
[311695086,1705336294816,-500.0,0.00033424,4]
[311695087,1705336294826,-830.63,0.00033424,4]
[311695088,1705336294836,-185.88757087,0.00033424,4]
[311695089,1705336294846,-745.09,0.00033424,4]
[311695090,1705336294855,-509.99,0.00033424,4]
[311695091,1705336294865,-715.56,0.00033424,4]
[311695092,1705336294875,-500.0,0.00033424,4]
[311695093,1705336294884,-500.0,0.00033424,4]
[311695094,1705336294894,-500.0,0.00033424,4]
[311695095,1705336294903,-2400.35,0.00033424,4]
[311695096,1705336294913,-1426.85,0.00033424,4]
[311695097,1705336294922,-5459.71,0.00033424,4]
[311695098,1705336294932,-500.0,0.00033424,4]
[311695099,1705336294942,-500.0,0.00033424,4]
[311695100,1705336294951,-1515.35,0.00033424,4]
[311695101,1705336294961,-1697.67,0.00033424,4]
[311695102,1705336294971,-789.7,0.00033424,4]
[311695103,1705336294980,-500.0,0.00033424,4]
[311695104,1705336294990,-815.27,0.00033424,4]
[311695105,1705336294999,-2265.36,0.00033424,4]